[Event "Late-Titled-Tuesday-Blitz-June-18-2024"]
[Site "Chess.com"]
[Date "2024.06.18"]
[Round "2"]
[White "sudtirolese06"]
[Black "crazycheesecake"]
[Result "1-0"]
[WhiteElo "2459"]
[BlackElo "2134"]
[TimeControl "180+1"]
[EndTime "14:17:00 PDT"]
[Termination "sudtirolese06 won on time"]

1. d4 {[%clk 0:03:00.9]} 1... d5 {[%clk 0:02:59.6]} 2. Bf4 {[%clk 0:03:00.4]}
2... Nf6 {[%clk 0:02:58.8]} 3. e3 {[%clk 0:03:00.1]} 3... c5 {[%clk 0:02:57.7]}
4. dxc5 {[%clk 0:03:01]} 4... Nc6 {[%clk 0:02:50.5]} 5. Bb5 {[%clk 0:03:00]}
5... e6 {[%clk 0:02:33]} 6. b4 {[%clk 0:02:57.2]} 6... Bd7 {[%clk 0:02:10.5]} 7.
c3 {[%clk 0:02:52]} 7... a5 {[%clk 0:01:46.6]} 8. Qb3 {[%clk 0:02:51.3]} 8...
axb4 {[%clk 0:01:06.3]} 9. cxb4 {[%clk 0:02:51.1]} 9... Nh5 {[%clk 0:00:52.7]}
10. Ne2 {[%clk 0:02:44.8]} 10... Nxf4 {[%clk 0:00:22]} 11. Nxf4 {[%clk
0:02:45.7]} 11... Qf6 {[%clk 0:00:19.6]} 12. O-O {[%clk 0:02:34.8]} 12... Qxa1
{[%clk 0:00:08.3]} 13. Nc3 {[%clk 0:02:35.3]} 13... Qxf1+ {[%clk 0:00:05.2]} 14.
Kxf1 {[%clk 0:02:36.2]} 14... Be7 {[%clk 0:00:05]} 15. a4 {[%clk 0:02:35.5]}
15... O-O {[%clk 0:00:04.3]} 16. Bxc6 {[%clk 0:02:29.5]} 16... Bxc6 {[%clk
0:00:04.1]} 17. b5 {[%clk 0:02:29.9]} 17... Bd7 {[%clk 0:00:03.7]} 18. Nd3
{[%clk 0:02:30.8]} 18... Rfc8 {[%clk 0:00:02.6]} 19. Nxd5 {[%clk 0:02:14.2]}
19... exd5 {[%clk 0:00:02.4]} 20. Qxd5 {[%clk 0:02:15.1]} 20... Be6 {[%clk
0:00:02.4]} 21. Qxb7 {[%clk 0:02:14.5]} 21... Bc4 {[%clk 0:00:02.3]} 22. Qe4
{[%clk 0:02:10]} 22... Bxd3+ {[%clk 0:00:01.1]} 23. Qxd3 {[%clk 0:02:10.9]}
23... Bxc5 {[%clk 0:00:01.3]} 24. Qc4 {[%clk 0:02:09.8]} 24... Bb6 {[%clk
0:00:01.4]} 25. Qe4 {[%clk 0:02:05.5]} 25... Rc1+ {[%clk 0:00:01]} 26. Ke2
{[%clk 0:02:05.9]} 26... Rac8 {[%clk 0:00:01.3]} 27. Kf3 {[%clk 0:02:05.8]}
27... R1c2 {[%clk 0:00:01.2]} 28. Qb4 {[%clk 0:02:02.8]} 28... R2c7 {[%clk
0:00:01]} 29. a5 {[%clk 0:02:02.8]} 29... Bc5 {[%clk 0:00:01.5]} 30. Qe4 {[%clk
0:02:01.8]} 30... Bd6 {[%clk 0:00:01.5]} 31. b6 {[%clk 0:02:01.5]} 31... Rc2
{[%clk 0:00:01.6]} 32. a6 {[%clk 0:02:00.4]} 32... Rb2 {[%clk 0:00:01]} 33. a7
{[%clk 0:01:59]} 1-0

[Event "Late-Titled-Tuesday-Blitz-June-18-2024"]
[Site "Chess.com"]
[Date "2024.06.18"]
[Round "2"]
[White "Rud_Makarian"]
[Black "Jarming"]
[Result "1-0"]
[WhiteElo "3066"]
[BlackElo "2639"]
[TimeControl "180+1"]
[EndTime "14:17:04 PDT"]
[Termination "Rud_Makarian won by resignation"]

1. d4 {[%clk 0:02:58.1]} 1... Nf6 {[%clk 0:02:58.5]} 2. Nf3 {[%clk 0:02:58.4]}
2... g6 {[%clk 0:02:57.3]} 3. c4 {[%clk 0:02:58.1]} 3... Bg7 {[%clk 0:02:56.4]}
4. Nc3 {[%clk 0:02:58.9]} 4... d5 {[%clk 0:02:56.6]} 5. Bg5 {[%clk 0:02:56.6]}
5... Ne4 {[%clk 0:02:55.3]} 6. Bf4 {[%clk 0:02:55.4]} 6... Nxc3 {[%clk 0:02:55]}
7. bxc3 {[%clk 0:02:56.3]} 7... c5 {[%clk 0:02:55.8]} 8. e3 {[%clk 0:02:54.8]}
8... O-O {[%clk 0:02:54.8]} 9. cxd5 {[%clk 0:02:51.5]} 9... cxd4 {[%clk
0:02:53.4]} 10. cxd4 {[%clk 0:02:51.1]} 10... Qxd5 {[%clk 0:02:53.2]} 11. Be2
{[%clk 0:02:51.4]} 11... Nc6 {[%clk 0:02:53.3]} 12. O-O {[%clk 0:02:51.2]} 12...
Bf5 {[%clk 0:02:54]} 13. Qa4 {[%clk 0:02:48.8]} 13... Qa5 {[%clk 0:02:48.9]} 14.
Qxa5 {[%clk 0:02:24.9]} 14... Nxa5 {[%clk 0:02:47.8]} 15. Rac1 {[%clk
0:02:23.9]} 15... Rfc8 {[%clk 0:02:45.1]} 16. Ne5 {[%clk 0:02:20.8]} 16... Be4
{[%clk 0:02:38.4]} 17. Nc4 {[%clk 0:01:27.4]} 17... Nxc4 {[%clk 0:02:16.7]} 18.
Bxc4 {[%clk 0:01:28.3]} 18... e6 {[%clk 0:01:57]} 19. f3 {[%clk 0:01:16.2]}
19... Rxc4 {[%clk 0:01:50.9]} 20. Rxc4 {[%clk 0:01:16.2]} 20... Bd3 {[%clk
0:01:50.8]} 21. Rc7 {[%clk 0:01:16.9]} 21... Bxf1 {[%clk 0:01:51.1]} 22. Kxf1
{[%clk 0:01:17.8]} 22... b5 {[%clk 0:01:51.7]} 23. Rb7 {[%clk 0:01:14.4]} 23...
a6 {[%clk 0:01:50]} 24. Ke2 {[%clk 0:01:13.7]} 24... h5 {[%clk 0:01:43.9]} 25.
Kd3 {[%clk 0:01:13.5]} 25... Bf6 {[%clk 0:01:32.1]} 26. Bc7 {[%clk 0:01:07.6]}
26... a5 {[%clk 0:01:09.6]} 27. Rxb5 {[%clk 0:01:05.5]} 27... a4 {[%clk
0:01:08.5]} 28. Rb8+ {[%clk 0:00:52.7]} 1-0

[Event "Late-Titled-Tuesday-Blitz-June-18-2024"]
[Site "Chess.com"]
[Date "2024.06.18"]
[Round "2"]
[White "fly_21"]
[Black "bascheyaro"]
[Result "0-1"]
[WhiteElo "2571"]
[BlackElo "2842"]
[TimeControl "180+1"]
[EndTime "14:17:04 PDT"]
[Termination "bascheyaro won by resignation"]

1. d4 {[%clk 0:03:00.9]} 1... d5 {[%clk 0:02:53.9]} 2. c4 {[%clk 0:03:00.7]}
2... c6 {[%clk 0:02:52.4]} 3. Nf3 {[%clk 0:03:00.6]} 3... Nf6 {[%clk 0:02:51.5]}
4. e3 {[%clk 0:03:00.9]} 4... Bf5 {[%clk 0:02:51.2]} 5. Nc3 {[%clk 0:03:00.5]}
5... e6 {[%clk 0:02:51.7]} 6. Nh4 {[%clk 0:03:00.6]} 6... Be4 {[%clk 0:02:52.1]}
7. f3 {[%clk 0:03:00.3]} 7... Bg6 {[%clk 0:02:52.8]} 8. Qb3 {[%clk 0:02:59.1]}
8... Qb6 {[%clk 0:02:53.1]} 9. Nxg6 {[%clk 0:02:56.8]} 9... hxg6 {[%clk
0:02:53]} 10. Bd2 {[%clk 0:02:54.3]} 10... Nbd7 {[%clk 0:02:53.1]} 11. Kf2
{[%clk 0:02:50.7]} 11... Bd6 {[%clk 0:02:52.5]} 12. c5 {[%clk 0:02:39.8]} 12...
Qxb3 {[%clk 0:02:51.5]} 13. axb3 {[%clk 0:02:40.7]} 13... Bc7 {[%clk 0:02:36.9]}
14. Bd3 {[%clk 0:02:27.6]} 14... a6 {[%clk 0:02:36.2]} 15. g3 {[%clk 0:02:12.8]}
15... e5 {[%clk 0:02:35.9]} 16. b4 {[%clk 0:02:11.7]} 16... O-O {[%clk 0:02:34]}
17. h4 {[%clk 0:02:06]} 17... Rfe8 {[%clk 0:02:33.4]} 18. g4 {[%clk 0:01:59.1]}
18... Nf8 {[%clk 0:02:32.5]} 19. g5 {[%clk 0:01:43.1]} 19... Nh5 {[%clk
0:02:27.9]} 20. Ne2 {[%clk 0:01:43.3]} 20... f5 {[%clk 0:02:13.2]} 21. f4 {[%clk
0:01:32.8]} 21... exf4 {[%clk 0:02:11.4]} 22. exf4 {[%clk 0:01:33.7]} 22... Re7
{[%clk 0:01:51.7]} 23. Rae1 {[%clk 0:01:24.3]} 23... Rae8 {[%clk 0:01:51.4]} 24.
Kf3 {[%clk 0:01:09.9]} 24... Kf7 {[%clk 0:01:49.5]} 25. Rhg1 {[%clk 0:01:04.7]}
25... Ne6 {[%clk 0:01:49.1]} 26. Ref1 {[%clk 0:00:46.2]} 26... Bb8 {[%clk
0:01:48.7]} 27. Rg2 {[%clk 0:00:42.1]} 27... Nc7 {[%clk 0:01:48.6]} 28. Rgg1
{[%clk 0:00:37.9]} 28... Nb5 {[%clk 0:01:48.6]} 29. Rg2 {[%clk 0:00:37.5]} 29...
Bc7 {[%clk 0:01:46.9]} 30. Rgg1 {[%clk 0:00:37.5]} 30... Rxe2 {[%clk 0:01:45]}
31. Bxe2 {[%clk 0:00:35.3]} 31... Nxd4+ {[%clk 0:01:45.2]} 0-1

[Event "Late-Titled-Tuesday-Blitz-June-18-2024"]
[Site "Chess.com"]
[Date "2024.06.18"]
[Round "2"]
[White "rychessmaster1"]
[Black "invisible_s0ul"]
[Result "1-0"]
[WhiteElo "2741"]
[BlackElo "2396"]
[TimeControl "180+1"]
[EndTime "14:17:05 PDT"]
[Termination "rychessmaster1 won by checkmate"]

1. d4 {[%clk 0:03:00.9]} 1... b6 {[%clk 0:02:54.3]} 2. e4 {[%clk 0:02:59.9]}
2... Bb7 {[%clk 0:02:54.9]} 3. Nc3 {[%clk 0:03:00.2]} 3... g6 {[%clk 0:02:55.6]}
4. h4 {[%clk 0:02:59.5]} 4... Bg7 {[%clk 0:02:56.3]} 5. h5 {[%clk 0:02:59.5]}
5... c5 {[%clk 0:02:49.1]} 6. Be3 {[%clk 0:02:55.5]} 6... cxd4 {[%clk 0:02:41]}
7. Bxd4 {[%clk 0:02:56.4]} 7... e5 {[%clk 0:02:33.8]} 8. Be3 {[%clk 0:02:55.2]}
8... Nf6 {[%clk 0:02:31.5]} 9. Bc4 {[%clk 0:02:30.5]} 9... Nxh5 {[%clk
0:02:15.3]} 10. Rxh5 {[%clk 0:02:14]} 10... gxh5 {[%clk 0:02:16.2]} 11. Qxh5
{[%clk 0:02:14.3]} 11... Qf6 {[%clk 0:02:02.3]} 12. Nf3 {[%clk 0:02:06.9]} 12...
Qg6 {[%clk 0:01:55.5]} 13. Qh3 {[%clk 0:02:03.2]} 13... Bxe4 {[%clk 0:01:47.4]}
14. Nh4 {[%clk 0:02:01.8]} 14... Qc6 {[%clk 0:01:41.8]} 15. Bb5 {[%clk
0:01:51.6]} 15... Qb7 {[%clk 0:01:41.8]} 16. O-O-O {[%clk 0:01:40.4]} 16... Bc6
{[%clk 0:01:41.5]} 17. Bc4 {[%clk 0:01:39.2]} 17... Na6 {[%clk 0:01:21.4]} 18.
Nf5 {[%clk 0:01:38.4]} 18... Bf8 {[%clk 0:01:15.6]} 19. Bg5 {[%clk 0:01:14.8]}
19... Nc5 {[%clk 0:00:27]} 20. Bf6 {[%clk 0:01:07]} 20... Rg8 {[%clk 0:00:24.4]}
21. Qxh7 {[%clk 0:01:07.3]} 21... Rg6 {[%clk 0:00:23.9]} 22. Qxf7# {[%clk
0:01:07.2]} 1-0

[Event "Late-Titled-Tuesday-Blitz-June-18-2024"]
[Site "Chess.com"]
[Date "2024.06.18"]
[Round "2"]
[White "romulocardoso"]
[Black "WindWhistler11"]
[Result "0-1"]
[WhiteElo "2315"]
[BlackElo "2522"]
[TimeControl "180+1"]
[EndTime "14:17:05 PDT"]
[Termination "WindWhistler11 won by resignation"]

1. e4 {[%clk 0:02:51.5]} 1... g6 {[%clk 0:02:42.9]} 2. d4 {[%clk 0:02:49.6]}
2... Bg7 {[%clk 0:02:43.2]} 3. Nf3 {[%clk 0:02:49.9]} 3... d6 {[%clk 0:02:43.7]}
4. h3 {[%clk 0:02:48.8]} 4... a6 {[%clk 0:02:42.1]} 5. Bc4 {[%clk 0:02:24.3]}
5... e6 {[%clk 0:02:37.5]} 6. a4 {[%clk 0:02:22]} 6... b6 {[%clk 0:02:28.7]} 7.
O-O {[%clk 0:02:08.2]} 7... Bb7 {[%clk 0:02:21.9]} 8. Re1 {[%clk 0:02:08.2]}
8... Ne7 {[%clk 0:02:21.3]} 9. Bg5 {[%clk 0:02:01.6]} 9... h6 {[%clk 0:02:14.1]}
10. Bh4 {[%clk 0:02:01]} 10... O-O {[%clk 0:02:11.3]} 11. Nbd2 {[%clk
0:01:57.7]} 11... Nd7 {[%clk 0:01:55]} 12. Nf1 {[%clk 0:01:57.3]} 12... c5
{[%clk 0:01:50.9]} 13. d5 {[%clk 0:01:52.3]} 13... e5 {[%clk 0:01:44]} 14. c3
{[%clk 0:01:43.6]} 14... f5 {[%clk 0:01:35.4]} 15. exf5 {[%clk 0:01:43.5]} 15...
gxf5 {[%clk 0:01:33.3]} 16. Ng3 {[%clk 0:01:32.5]} 16... Qe8 {[%clk 0:01:29.5]}
17. Nh5 {[%clk 0:01:29.7]} 17... Bh8 {[%clk 0:01:19]} 18. Qd2 {[%clk 0:01:29.2]}
18... Kh7 {[%clk 0:01:13.4]} 19. g4 {[%clk 0:01:18.8]} 19... Ng6 {[%clk
0:01:08.8]} 20. g5 {[%clk 0:01:00.1]} 20... Nxh4 {[%clk 0:01:06]} 21. Nxh4
{[%clk 0:00:56.7]} 21... Qxh5 {[%clk 0:01:05.6]} 22. g6+ {[%clk 0:00:57.2]}
22... Kg8 {[%clk 0:01:03.3]} 23. Re3 {[%clk 0:00:52.5]} 23... Qxh4 {[%clk
0:00:58.7]} 24. Rg3 {[%clk 0:00:52.9]} 24... Bg7 {[%clk 0:00:55.8]} 0-1

[Event "Late-Titled-Tuesday-Blitz-June-18-2024"]
[Site "Chess.com"]
[Date "2024.06.18"]
[Round "2"]
[White "Schattman"]
[Black "MasterofMasters2006"]
[Result "0-1"]
[WhiteElo "2478"]
[BlackElo "2260"]
[TimeControl "180+1"]
[EndTime "14:17:08 PDT"]
[Termination "MasterofMasters2006 won on time"]

1. Nf3 {[%clk 0:03:00.9]} 1... Nf6 {[%clk 0:02:59.4]} 2. b3 {[%clk 0:03:00]}
2... g6 {[%clk 0:02:59.1]} 3. Bb2 {[%clk 0:03:00.4]} 3... Bg7 {[%clk 0:02:59.8]}
4. g3 {[%clk 0:03:01.2]} 4... O-O {[%clk 0:03:00.1]} 5. c4 {[%clk 0:03:00.1]}
5... b6 {[%clk 0:03:00.6]} 6. Bg2 {[%clk 0:03:00.1]} 6... Bb7 {[%clk 0:03:01.2]}
7. O-O {[%clk 0:03:00.5]} 7... d6 {[%clk 0:03:01.6]} 8. d4 {[%clk 0:03:00.4]}
8... Nbd7 {[%clk 0:03:01.9]} 9. Nc3 {[%clk 0:02:59.5]} 9... d5 {[%clk
0:03:01.2]} 10. Ne5 {[%clk 0:02:57.1]} 10... e6 {[%clk 0:03:00.4]} 11. Rc1
{[%clk 0:02:53.1]} 11... Rc8 {[%clk 0:02:59.4]} 12. e3 {[%clk 0:02:44.3]} 12...
c5 {[%clk 0:02:59.2]} 13. Nxd7 {[%clk 0:02:42.1]} 13... Qxd7 {[%clk 0:02:58.4]}
14. cxd5 {[%clk 0:02:39.5]} 14... Nxd5 {[%clk 0:02:57.7]} 15. Nxd5 {[%clk
0:02:36]} 15... Bxd5 {[%clk 0:02:58.6]} 16. Bxd5 {[%clk 0:02:10]} 16... Qxd5
{[%clk 0:02:58.2]} 17. Qe2 {[%clk 0:02:04.7]} 17... cxd4 {[%clk 0:02:56.6]} 18.
Rxc8 {[%clk 0:02:02.6]} 18... Rxc8 {[%clk 0:02:57.5]} 19. Rd1 {[%clk 0:02:02.2]}
19... e5 {[%clk 0:02:43.7]} 20. exd4 {[%clk 0:02:02.1]} 20... exd4 {[%clk
0:02:44.6]} 21. Qd3 {[%clk 0:01:59.9]} 21... h5 {[%clk 0:02:37.7]} 22. h4 {[%clk
0:01:59.1]} 22... Re8 {[%clk 0:02:28.9]} 23. Kh2 {[%clk 0:01:57]} 23... Qe4
{[%clk 0:02:11.4]} 24. Kg1 {[%clk 0:01:51.5]} 24... Qg4 {[%clk 0:02:02.6]} 25.
Kg2 {[%clk 0:01:40.1]} 25... Qe2 {[%clk 0:01:47.3]} 26. Bxd4 {[%clk 0:01:31.1]}
26... Qxd3 {[%clk 0:01:43.8]} 27. Rxd3 {[%clk 0:01:30.6]} 27... Rd8 {[%clk
0:01:44.3]} 28. Bxg7 {[%clk 0:00:05.1]} 28... Rxd3 {[%clk 0:01:45.2]} 0-1

[Event "Late-Titled-Tuesday-Blitz-June-18-2024"]
[Site "Chess.com"]
[Date "2024.06.18"]
[Round "2"]
[White "Roachelley"]
[Black "Andrei_Skvortsov"]
[Result "0-1"]
[WhiteElo "2541"]
[BlackElo "2773"]
[TimeControl "180+1"]
[EndTime "14:17:11 PDT"]
[Termination "Andrei_Skvortsov won by resignation"]

1. Nf3 {[%clk 0:03:00.9]} 1... g6 {[%clk 0:02:59.3]} 2. e3 {[%clk 0:03:01.1]}
2... Bg7 {[%clk 0:02:59.4]} 3. d4 {[%clk 0:03:01.1]} 3... c5 {[%clk 0:02:59.2]}
4. b3 {[%clk 0:03:01.3]} 4... cxd4 {[%clk 0:02:59.2]} 5. exd4 {[%clk 0:03:01.3]}
5... Nh6 {[%clk 0:02:59.2]} 6. Bb2 {[%clk 0:03:01.5]} 6... O-O {[%clk
0:02:58.9]} 7. Bd3 {[%clk 0:03:01.1]} 7... d5 {[%clk 0:02:58.9]} 8. O-O {[%clk
0:03:00.3]} 8... Bf5 {[%clk 0:02:59.5]} 9. c4 {[%clk 0:02:55.1]} 9... Bxd3
{[%clk 0:02:58.5]} 10. Qxd3 {[%clk 0:02:54.8]} 10... Nc6 {[%clk 0:02:59.2]} 11.
Rd1 {[%clk 0:02:53.2]} 11... Nf5 {[%clk 0:02:57.7]} 12. c5 {[%clk 0:02:49.3]}
12... a5 {[%clk 0:02:48.7]} 13. a3 {[%clk 0:02:46.2]} 13... b6 {[%clk
0:02:32.4]} 14. Qb5 {[%clk 0:02:36]} 14... Na7 {[%clk 0:02:21.7]} 15. Qxb6
{[%clk 0:02:08]} 15... Qxb6 {[%clk 0:02:22.1]} 16. cxb6 {[%clk 0:02:08.2]} 16...
Nb5 {[%clk 0:02:22.8]} 17. a4 {[%clk 0:01:56.2]} 17... Nbd6 {[%clk 0:02:22.3]}
18. Nc3 {[%clk 0:01:55.3]} 18... e6 {[%clk 0:02:22]} 19. Ba3 {[%clk 0:01:47.5]}
19... Rfd8 {[%clk 0:02:04]} 20. Rac1 {[%clk 0:01:43.6]} 20... Rab8 {[%clk
0:02:01.9]} 21. b4 {[%clk 0:01:28.5]} 21... Nc4 {[%clk 0:02:01]} 22. Nb1 {[%clk
0:01:21.3]} 22... Nxa3 {[%clk 0:01:58.9]} 23. Nxa3 {[%clk 0:01:22.2]} 23... axb4
{[%clk 0:01:54.5]} 24. Nb5 {[%clk 0:01:20.7]} 24... Rxb6 {[%clk 0:01:54.4]} 25.
Rb1 {[%clk 0:01:20.4]} 25... Bf8 {[%clk 0:01:54.8]} 26. Ne5 {[%clk 0:01:14.6]}
26... Ra6 {[%clk 0:01:52.9]} 27. Ra1 {[%clk 0:01:11.2]} 27... Rc8 {[%clk
0:01:34.1]} 28. g4 {[%clk 0:01:06.4]} 28... Nd6 {[%clk 0:01:26.2]} 29. Nd3
{[%clk 0:01:00.1]} 29... Ne4 {[%clk 0:01:21.1]} 30. f3 {[%clk 0:00:40.3]} 30...
Nc3 {[%clk 0:01:19.2]} 31. Re1 {[%clk 0:00:35.6]} 31... Rxa4 {[%clk 0:01:17.5]}
0-1

[Event "Late-Titled-Tuesday-Blitz-June-18-2024"]
[Site "Chess.com"]
[Date "2024.06.18"]
[Round "2"]
[White "Jospem"]
[Black "Malev212"]
[Result "1-0"]
[WhiteElo "3054"]
[BlackElo "2635"]
[TimeControl "180+1"]
[EndTime "14:17:15 PDT"]
[Termination "Jospem won by resignation"]

1. e4 {[%clk 0:02:58.2]} 1... c6 {[%clk 0:02:52.1]} 2. d4 {[%clk 0:02:58.2]}
2... d6 {[%clk 0:02:51.8]} 3. Bd3 {[%clk 0:02:57.3]} 3... Nd7 {[%clk 0:02:51.6]}
4. c3 {[%clk 0:02:57.7]} 4... h6 {[%clk 0:02:51.7]} 5. f4 {[%clk 0:02:57.9]}
5... g5 {[%clk 0:02:51.2]} 6. Ne2 {[%clk 0:02:52.1]} 6... Bg7 {[%clk 0:02:50]}
7. O-O {[%clk 0:02:52.2]} 7... gxf4 {[%clk 0:02:46.1]} 8. Bxf4 {[%clk
0:02:53.1]} 8... e5 {[%clk 0:02:37.9]} 9. Be3 {[%clk 0:02:53.3]} 9... h5 {[%clk
0:02:07.1]} 10. Nd2 {[%clk 0:02:41.5]} 10... h4 {[%clk 0:02:04.2]} 11. h3 {[%clk
0:02:40]} 11... Ngf6 {[%clk 0:01:58.7]} 12. Nf3 {[%clk 0:02:34.7]} 12... Qe7
{[%clk 0:01:50.7]} 13. Bg5 {[%clk 0:02:27]} 13... Bh6 {[%clk 0:01:34.6]} 14.
Bxh4 {[%clk 0:02:25.8]} 14... Be3+ {[%clk 0:01:27.9]} 15. Bf2 {[%clk 0:02:11.5]}
15... exd4 {[%clk 0:01:23.4]} 16. cxd4 {[%clk 0:02:10.6]} 16... Bxf2+ {[%clk
0:01:20.7]} 17. Rxf2 {[%clk 0:02:11.5]} 17... Nxe4 {[%clk 0:01:14.1]} 18. Bxe4
{[%clk 0:02:11.4]} 18... Qxe4 {[%clk 0:01:14]} 19. Qd2 {[%clk 0:02:09.2]} 19...
Nb6 {[%clk 0:01:07.8]} 20. Re1 {[%clk 0:02:03.2]} 20... Be6 {[%clk 0:01:07.2]}
21. Nf4 {[%clk 0:02:02.7]} 21... Qf5 {[%clk 0:00:50]} 22. d5 {[%clk 0:02:02.9]}
22... Nxd5 {[%clk 0:00:46.9]} 23. Nd4 {[%clk 0:02:02.8]} 23... Qg5 {[%clk
0:00:41.5]} 24. Ndxe6 {[%clk 0:01:23.4]} 24... fxe6 {[%clk 0:00:40.8]} 25. Rxe6+
{[%clk 0:01:18.9]} 25... Kd7 {[%clk 0:00:39.9]} 26. Nxd5 {[%clk 0:01:13.1]}
26... Qxd2 {[%clk 0:00:37.6]} 27. Re7+ {[%clk 0:01:12.7]} 27... Kd8 {[%clk
0:00:36.1]} 28. Rxd2 {[%clk 0:01:13.6]} 28... cxd5 {[%clk 0:00:35.7]} 29. Rxb7
{[%clk 0:01:14.2]} 1-0

[Event "Late-Titled-Tuesday-Blitz-June-18-2024"]
[Site "Chess.com"]
[Date "2024.06.18"]
[Round "2"]
[White "ellatambien"]
[Black "IngOscarArdila"]
[Result "1-0"]
[WhiteElo "2724"]
[BlackElo "2424"]
[TimeControl "180+1"]
[EndTime "14:17:15 PDT"]
[Termination "ellatambien won by checkmate"]

1. c4 {[%clk 0:03:00.9]} 1... Nf6 {[%clk 0:02:57.8]} 2. Nc3 {[%clk 0:03:00.5]}
2... e6 {[%clk 0:02:58.3]} 3. e4 {[%clk 0:02:59.4]} 3... d6 {[%clk 0:02:58.7]}
4. d4 {[%clk 0:02:57.8]} 4... Be7 {[%clk 0:02:58.9]} 5. f4 {[%clk 0:02:56.1]}
5... c5 {[%clk 0:02:58.4]} 6. d5 {[%clk 0:02:54.8]} 6... exd5 {[%clk 0:02:58.3]}
7. cxd5 {[%clk 0:02:55.2]} 7... Bg4 {[%clk 0:02:57]} 8. Qb3 {[%clk 0:02:45.4]}
8... Bc8 {[%clk 0:02:54.5]} 9. Nf3 {[%clk 0:02:43.8]} 9... a6 {[%clk 0:02:51.5]}
10. a4 {[%clk 0:02:43.1]} 10... b6 {[%clk 0:02:51.5]} 11. Bc4 {[%clk 0:02:38.5]}
11... Bg4 {[%clk 0:02:49.7]} 12. e5 {[%clk 0:02:34.8]} 12... Nfd7 {[%clk
0:02:40]} 13. O-O {[%clk 0:02:30.6]} 13... Bxf3 {[%clk 0:02:39.2]} 14. Rxf3
{[%clk 0:02:28.1]} 14... dxe5 {[%clk 0:02:27.8]} 15. d6 {[%clk 0:02:27.8]} 15...
Bxd6 {[%clk 0:02:26]} 16. Bxf7+ {[%clk 0:02:27.7]} 16... Kf8 {[%clk 0:02:21]}
17. fxe5 {[%clk 0:02:22.8]} 17... Nxe5 {[%clk 0:02:20.6]} 18. Bh5+ {[%clk
0:02:22.8]} 18... Nxf3+ {[%clk 0:02:10.9]} 19. Bxf3 {[%clk 0:02:22.8]} 19... Ra7
{[%clk 0:02:04.7]} 20. Be3 {[%clk 0:02:12.4]} 20... Re7 {[%clk 0:02:01.6]} 21.
Bf2 {[%clk 0:02:09.2]} 21... Be5 {[%clk 0:01:57.8]} 22. Rd1 {[%clk 0:01:50.9]}
22... Bd4 {[%clk 0:01:56.8]} 23. Bxd4 {[%clk 0:01:44.6]} 23... cxd4 {[%clk
0:01:57]} 24. Nd5 {[%clk 0:01:45.3]} 24... Rd7 {[%clk 0:01:37.7]} 25. Rxd4
{[%clk 0:01:44.3]} 25... Nc6 {[%clk 0:01:37.3]} 26. Rf4+ {[%clk 0:01:43.1]}
26... Ke8 {[%clk 0:01:22]} 27. Qc3 {[%clk 0:01:31.9]} 27... Rxd5 {[%clk
0:00:23.5]} 28. Qxc6+ {[%clk 0:01:29.7]} 28... Rd7 {[%clk 0:00:22.5]} 29. Bg4
{[%clk 0:01:27.5]} 29... Rf8 {[%clk 0:00:18.9]} 30. Bxd7+ {[%clk 0:01:25.1]}
30... Ke7 {[%clk 0:00:19]} 31. Qe6# {[%clk 0:01:23.9]} 1-0

[Event "Late-Titled-Tuesday-Blitz-June-18-2024"]
[Site "Chess.com"]
[Date "2024.06.18"]
[Round "2"]
[White "topin8"]
[Black "Sacbutt"]
[Result "1-0"]
[WhiteElo "2523"]
[BlackElo "2315"]
[TimeControl "180+1"]
[EndTime "14:17:16 PDT"]
[Termination "topin8 won by resignation"]

1. c4 {[%clk 0:03:00.9]} 1... Nf6 {[%clk 0:02:56.4]} 2. Nc3 {[%clk 0:03:00.8]}
2... e6 {[%clk 0:02:49.4]} 3. Nf3 {[%clk 0:02:56.7]} 3... d5 {[%clk 0:02:48.9]}
4. e3 {[%clk 0:02:55.7]} 4... Be7 {[%clk 0:02:49.2]} 5. b3 {[%clk 0:02:55.8]}
5... O-O {[%clk 0:02:49.3]} 6. Bb2 {[%clk 0:02:56.3]} 6... b6 {[%clk 0:02:49.5]}
7. Qc2 {[%clk 0:02:56.5]} 7... Bb7 {[%clk 0:02:48.9]} 8. Be2 {[%clk 0:02:55.8]}
8... Nbd7 {[%clk 0:02:48.9]} 9. g4 {[%clk 0:02:44.9]} 9... dxc4 {[%clk
0:02:46.4]} 10. bxc4 {[%clk 0:02:43.4]} 10... Ne5 {[%clk 0:02:29.2]} 11. Nxe5
{[%clk 0:02:30]} 11... Bxh1 {[%clk 0:02:30.1]} 12. f3 {[%clk 0:02:26.5]} 12...
Bg2 {[%clk 0:02:21.2]} 13. O-O-O {[%clk 0:02:19.6]} 13... Nd7 {[%clk 0:02:15.1]}
14. Nc6 {[%clk 0:02:18.3]} 14... Qe8 {[%clk 0:02:14.9]} 15. Rg1 {[%clk
0:02:17.6]} 15... Bh3 {[%clk 0:02:01.7]} 16. Rg3 {[%clk 0:02:16.1]} 16... Bxg4
{[%clk 0:01:52.7]} 17. Nxe7+ {[%clk 0:02:02.7]} 17... Qxe7 {[%clk 0:01:52.3]}
18. Rxg4 {[%clk 0:02:03.6]} 18... f5 {[%clk 0:01:48.7]} 19. Rg2 {[%clk
0:01:41.6]} 19... Rf7 {[%clk 0:01:40]} 20. f4 {[%clk 0:01:35.6]} 20... c6 {[%clk
0:01:36.3]} 21. Bf3 {[%clk 0:01:33]} 21... Rc8 {[%clk 0:01:36.4]} 22. Ne2 {[%clk
0:01:17.9]} 22... Nc5 {[%clk 0:01:33.1]} 23. Nd4 {[%clk 0:01:08.4]} 23... Qd6
{[%clk 0:01:30]} 24. Kb1 {[%clk 0:00:58.9]} 24... g6 {[%clk 0:01:20.5]} 25. h4
{[%clk 0:00:58.2]} 25... Kf8 {[%clk 0:01:15.7]} 26. h5 {[%clk 0:00:57.6]} 26...
Na4 {[%clk 0:00:44.7]} 1-0